Cogmind - Beta 9.4 @@@ ROGUE MODE // 2020.01.12 @ 13:50:23 Player: alice_fexa Result: Destroyed by D-53 Grenadier with Mini Grenade Launcher Performance ------------- Evolutions (0) 0 Regions Visited (2) 400 Robots Destroyed (34) 170 Value Destroyed (725) 725 Prototype IDs (0) 0 Alien Tech Used (0) 0 Bonus (25) 25 TOTAL SCORE: 1320 Bonus ------- Follower Combat Kills 25 Cogmind --------- Core Integrity 0/250 Matter 267/300 Energy 125/125 System Corruption 0% Temperature Cool (0) Movement Treading (180) Ox1 Location -10/Mines Parts ------- > --- POWER (1) -------- Light Ion Engine > --- PROPULSION (2) --- Light Treads Compact Wheel > --- UTILITY (2) ------ Large Storage Unit Light Armor Plating > --- WEAPON (2) ------- Assault Rifle Hammer > --- INVENTORY (10) --- Light Treads Improved Heat Sink Improved Heat Sink Large Storage Unit Large Storage Unit Light Armor Plating Grenade Launcher Grenade Launcher Plasma Flamer Peak State ------------ > --- POWER ------------ Ion Engine > --- PROPULSION ------- Light Treads Compact Wheel > --- UTILITY ---------- Large Storage Unit Light Armor Plating > --- WEAPON ----------- Light Assault Rifle Hammer > --- INVENTORY -------- Light Ion Engine Light Treads Improved Heat Sink Large Storage Unit Large Storage Unit Light Armor Plating Grenade Launcher Grenade Launcher [Rating: 8] Favorites ----------- Power Ion Engine Engine Ion Engine Propulsion Light Treads Treads Light Treads Wheel Compact Wheel Utility Light Armor Plating Storage Large Storage Unit Protection Light Armor Plating Weapon Hammer Energy Gun EM Pulse Gun Ballistic Gun Light Assault Rifle Launcher Grenade Launcher Impact Weapon Hammer Build | -11 -10 -10 ------- Run | Scr Mat Min Slots Evolved . | . . . Power . | . . . Propulsion . | . . . Utility . | . . . Weapon . | . . . Parts Attached 30 | 6 19 5 Power 6 | 1 3 2 Engine 6 | 1 3 2 Core . | . . . Reactor . | . . . Propulsion 5 | 2 3 . Treads 2 | 1 1 . Leg . | . . . Wheel 3 | 1 2 . Hover . | . . . Flight . | . . . Utility 7 | 1 5 1 Device . | . . . Storage 3 | 1 2 . Processor . | . . . Hackware . | . . . Protection 4 | . 3 1 Artifact . | . . . Weapon 12 | 2 8 2 Energy Gun 3 | 1 2 . Energy Cannon . | . . . Ballistic Gun 4 | 1 2 1 Ballistic Cannon . | . . . Launcher 4 | . 3 1 Special Weapon . | . . . Impact Weapon 1 | . 1 . Slashing Weapon . | . . . Piercing Weapon . | . . . Special Melee Weapon . | . . . Unidentified Prototypes . | . . . Parts Lost 7 | . 6 1 Power 1 | . 1 . Propulsion 1 | . 1 . Utility 2 | . 1 1 Weapon 3 | . 3 . Highest Loss Streak 5 | . 5 1 Average Slot Usage (%) 99 | . 98 100 Engine 14 | . 14 14 Treads 13 | . 13 14 Wheel 14 | . 14 14 Storage 14 | . 14 14 Protection 13 | . 12 14 Energy Gun 2 | . 5 . Ballistic Gun 9 | . 13 3 Launcher 6 | . 3 10 Impact Weapon 9 | . 5 14 Naked Turns . | . . . Heaviest Build 27 | 13 27 27 Greatest Support 16 | 16 16 16 Greatest Overweight (x) 1 | . 1 1 Average Overweight (x) . | . . 1 Largest Inventory Capacity 10 | 6 10 10 Average Capacity 8 | 5 6 10 Most Carried 10 | 4 10 10 Average Carried 7 | 2 6 9 Final Capacity 10 | 6 10 10 Final Carried 10 | 4 10 9 Class Distribution -------------------- 100% | Mutant Dominant Class ---------------- Mutant | -10/Materials Mutant | -10/Mines Resources | -11 -10 -10 ----------- Run | Scr Mat Min Matter Collected 731 | 201 356 174 Remotely . | . . . Salvage Created 898 | . 510 388 Parts 57 | . 42 15 Haulers Intercepted 2 | . 2 . Recyclers Shooed 1 | . . 1 Parts Field Recycled . | . . . Retrieved Matter . | . . . Parts Self-Destructed . | . . . Prevented . | . . . Kills | -11 -10 -10 ------- Run | Scr Mat Min Combat Hostiles Destroyed 20 | . 13 7 Melee 3 | . . 3 Guns 5 | . 4 1 AOE 12 | . 9 3 Classes Destroyed 9 | . 7 2 Worker 3 | . 3 . Builder 2 | . 1 1 Hauler 2 | . 2 . Recycler 2 | . . 2 Operator 2 | . 2 . Watcher 3 | . 3 . Swarmer 8 | . 5 3 Grunt 11 | . 8 3 Demolisher 1 | . . 1 Best Kill Streak 5 | . 5 4 Combat Bots Only 5 | . 5 3 Max Kills in Single Turn 5 | . 5 3 Gunslinging . | . . . Exploded 3 | . 3 2 Melee 1 | . . 1 Uniques/NPCs Destroyed . | . . . Combat | -11 -10 -10 -------- Run | Scr Mat Min Damage Taken 1296 | . 758 538 Core 271 | . 80 191 Absorbed by Shields . | . . . Core Remaining (%) 100 | 100 . . Volleys Fired 92 | . 73 19 Largest 2 | . 2 1 Hottest 60 | . 60 30 Shots Fired 129 | . 110 19 Gun 115 | . 98 17 Cannon . | . . . Launcher 14 | . 12 2 Special . | . . . Kinetic 83 | . 66 17 Thermal 13 | . 13 . Explosive 14 | . 12 2 Electromagnetic 19 | . 19 . Robot Hit Streak 12 | . 12 8 Robot Miss Streak 3 | . 3 1 Penetration Max . | . . . Secondary Targets . | . . . Shots Hit Robots 110 | . 77 33 Core Hits 52 | . 34 18 Critical Hits . | . . . Critical Kills . | . . . Critical Parts Destroyed . | . . . Melee Attacks 32 | . 4 28 Impact 32 | . 4 28 Slashing . | . . . Piercing . | . . . Sneak Attacks 7 | . 3 4 Combat Hostiles . | . . . Follow-up Attacks . | . . . Damage Inflicted 2753 | . 1626 1127 Guns 937 | . 794 143 Cannons . | . . . Explosions 869 | . 692 177 Melee 947 | . 140 807 Ramming . | . . . Kinetic 622 | . 479 143 Thermal 133 | . 85 48 Explosive 821 | . 692 129 Electromagnetic 230 | . 230 . Impact 947 | . 140 807 Slashing . | . . . Piercing . | . . . Highest Corruption . | . . . Average Corruption . | . . . Corruption Purged . | . . . Overload Shots . | . . . Overflow Damage 248 | . 59 189 Projectiles . | . . . Explosions 14 | . 14 . Melee 234 | . 45 189 Knockbacks 4 | . 1 3 Impact 4 | . 1 3 Kinetic . | . . . Secondary . | . . . Self-Inflicted Damage 123 | . 108 15 Shots 6 | . 5 1 Rammed . | . . . Targets Rammed . | . . . Kicked . | . . . Crushed . | . . . Highest Temperature 159 | . 159 6 Average Temperature 42 | . 45 3 Received Heat Transfer 339 | . 258 81 Siege Activations . | . . . Robots Corrupted . | . . . Combat Hostiles . | . . . Parts Fried 6 | . 2 4 Impact Corruptions 10 | . 4 6 Robots Melted . | . . . Combat Hostiles . | . . . Parts Melted . | . . . Heat Transferred 250 | . 200 50 Parts Sabotaged . | . . . Parts Stolen . | . . . Parts Stripped . | . . . Power Chain Reactions . | . . . Missiles Intercepted . | . . . Alert | -11 -10 -10 ------- Run | Scr Mat Min Peak Influence 391 | . 391 252 Average Influence 167 | . 202 136 Maximum Alert Level 1 | . 1 1 Low Security (%) 51 | 100 35 67 Level 1 48 | . 64 32 Level 2 . | . . . Level 3 . | . . . Level 4 . | . . . Level 5 . | . . . High Security . | . . . Max Security . | . . . Squads Dispatched 3 | . 3 . Investigation 1 | . 1 . Extermination . | . . . Reinforcement 2 | . 2 . Assault . | . . . Garrison . | . . . Intercept . | . . . Construction Impeded . | . . . Haulers Reinforced . | . . . Stealth | -11 -10 -10 --------- Run | Scr Mat Min Distress Signals 5 | . 4 1 Communications Jammed . | . . . Distress Signals . | . . . Times Spotted 33 | . 24 9 Peak Tracking Total 7 | . 7 3 Tactical Retreats . | . . . Traps | -11 -10 -10 ------- Run | Scr Mat Min Traps Triggered 1 | . 1 . Indirectly . | . . . Trap Hack Attempts . | . . . Triggered . | . . . Disarmed . | . . . Reprogrammed . | . . . Reused . | . . . Traps Extracted . | . . . Installed . | . . . Triggered 1 | . 1 . Machines | -11 -10 -10 ---------- Run | Scr Mat Min Machines Disabled 8 | . 3 5 Max in Single Turn 5 | . 1 5 Machines Sabotaged . | . . . Garrisons Compromised . | . . . Overloaded Fab Kills . | . . . Fab Network Shutdowns . | . . . Hacking | -11 -10 -10 --------- Run | Scr Mat Min Machines Accessed 6 | . 6 . Terminals 6 | . 6 . Fabricators . | . . . Repair Stations . | . . . Recycling Units . | . . . Scanalyzers . | . . . Garrison Access . | . . . Total Hacks 14 | . 14 . Successful 6 | . 6 . Failed 8 | . 8 . Catastrophic 1 | . 1 . Database Lockouts . | . . . Manual 13 | . 13 . Terminals 14 | . 14 . Fabricators . | . . . Repair Stations . | . . . Recycling Units . | . . . Scanalyzers . | . . . Garrison Access . | . . . Terminal Hacks 2 | . 2 . Locate Traps 1 | . 1 . Recall Reinforcements 1 | . 1 . Fabricator Hacks . | . . . Repair Station Hacks . | . . . Recycling Unit Hacks . | . . . Scanalyzer . | . . . Garrison Access Hacks . | . . . Unauthorized Hacks 11 | . 11 . Terminals 4 | . 4 . Botnet 4 | . 4 . Fabricators . | . . . Repair Stations . | . . . Recycling Units . | . . . Scanalyzers . | . . . Garrison Access . | . . . Data Cores Recovered . | . . . Used . | . . . Hacking Detections 6 | . 6 . Full Trace Events 1 | . 1 . Feedback Events . | . . . Feedback Blocked . | . . . Robot Schematics Acquired . | . . . Robots Built . | . . . Matter . | . . . Time . | . . . Total Robot Build Rating . | . . . Part Schematics Acquired . | . . . Parts Built . | . . . Matter . | . . . Time . | . . . Total Part Build Rating . | . . . Parts Repaired . | . . . Time . | . . . Parts Recycled . | . . . Recycled Matter . | . . . Retrieved Matter . | . . . Retrieved Components . | . . . Parts Scanalyzed . | . . . Part Schematics Acquired . | . . . Parts Damaged . | . . . Bothacking | -11 -10 -10 ------------ Run | Scr Mat Min Used RIF Installer . | . . . Robots Hacked . | . . . Non-combat . | . . . Combat . | . . . Robot Hacks Applied . | . . . Relay Couplers Released . | . . . Robots Rewired . | . . . Allies Hacked . | . . . Hacks Repelled . | . . . Allies | -11 -10 -10 -------- Run | Scr Mat Min Total Allies 1 | . . 1 Largest Group 1 | . . 1 Highest-Rated Group 31 | . . 31 Highest-Rated Ally 31 | . . 31 Total Orders . | . . . Ally Attacks 4 | . . 4 Total Damage 62 | . . 62 Kills 1 | . . 1 Allies Corrupted . | . . . Allies Melted . | . . . Intel | -11 -10 -10 ------- Run | Scr Mat Min Robot Analysis Total . | . . . Derelict Logs Recovered 1 | . . 1 Drone Launches . | . . . Drone Recoveries . | . . . Exploration | -11 -10 -10 ------------- Run | Scr Mat Min Turns Passed 1535 | 48 817 670 Spaces Moved 1069 | 36 538 495 Core 1 | 1 . . Treads . | . . . Legs . | . . . Wheels 1068 | 35 538 495 Hover . | . . . Flight . | . . . Fastest Speed 50 | 50 80 110 Average Speed 105 | 98 102 110 Slowest Speed 110 | 100 110 110 Overloaded Moves . | . . . Propulsion Burnouts . | . . . Robots Hopped . | . . . Cave-ins Triggered . | . . . Exploration Rate (%) 53 | 4 80 75 Regions Visited 2 Branch Regions 1 Pre-discovered Areas 1 | . . 1 Known Exits Taken . | . . . Unknown Exits Taken 2 | 1 1 . Scrap Searched . | . . . Spaces Dug 7 | . . 7 Terrain Destroyed 87 | . 59 28 Melee . | . . . Projectile . | . . . AOE 87 | . 59 28 Actions | -11 -10 -10 --------- Run | Scr Mat Min Total 1305 | 45 699 561 Wait 47 | . 38 9 Move 1067 | 35 537 495 Hop . | . . . Pick Up 21 | 4 15 2 Fast Attach 12 | 6 6 . Attach 5 | . 4 1 Detach 1 | . 1 . Swap 13 | . 9 4 Drop 15 | . 12 3 Fire 92 | . 73 19 Melee 32 | . 4 28 Ram . | . . . Kick . | . . . Crush . | . . . Escape Stasis . | . . . Rewire . | . . . Trap . | . . . Miscellaneous . | . . . Route ------- -11/Scrapyard -10/Materials (discovered 3 exits: [*Mat x2] / [*Min]) -10/Mines (discovered 2 exits: [*Mat x2]) History --------- Turn | Location | Event 30 | -11/Scrapyard | Discovered new exit (range 14) 49 | -11/Scrapyard | Entered Materials 288 | -10/Materials | Discovered new exit (range 5) 310 | -10/Materials | Build established: Mutant 402 | -10/Materials | Lost 5 parts (1p1n1u2w) 628 | -10/Materials | Discovered new exit (range 15) 715 | -10/Materials | Discovered new exit (range 13) 866 | -10/Materials | Entered Mines 946 | -10/Mines | Core integrity fell below 50% 1041 | -10/Mines | Discovered new exit (range 9) 1274 | -10/Mines | A weapon hastily lodged in a ceiling crevice suddenly fell to the ground 1283 | -10/Mines | Assembled infested the area 1290 | -10/Mines | Learned location of Zion (-6) 1319 | -10/Mines | Received a Mining Laser from a helpful Derelict 1470 | -10/Mines | Discovered new exit (range 5) 1525 | -10/Mines | Core integrity fell below 20% 1536 | -10/Mines | Destroyed by D-53 Grenadier with Mini Grenade Launcher Last Messages --------------- 01501_ Sneak attack on as-86530. 01501_ as-86530 knocked back. 01505_ Sneak attack on as-86530. 01505_ Destroyed Asb. Hover Unit. 01505_ as-86530 system corrupted by crushing effect. 01505_ as-86530 knocked back. 01509_ Sneak attack on as-86530. 01509_ Destroyed Asb. Heavy Rifle. 01509_ as-86530 system corrupted by crushing effect. 01509_ as-86530 destroyed. 01517_ C-30 ARC bursts open, deploying its payload. 01517_ D-53 Grenadier unfolds itself. 01517_ as-45174 destroyed. 01519_ G1-401(g) destroyed. 01519_ as-60265 destroyed. 01519_ as-78517 destroyed. 01522_ Lgt. Armor Plating destroyed. 01524_ as-97786 destroyed. 01526_ D-53 Grenadier destroyed. 01533_ The unstable cave ceiling collapses. Map ----- +----------------------------------------------------+ | | | ??????????????????????????????????????????????? | | ??????????????????????????????????????????????? | | ??????????????????????????????????????????????? | | ??????????????????????????????????????????????? | | ??????????????????????????????????????????????? | | ??????????????????????????????????????????????? | | ??????????????????????????????????????????????? | | ??????????????????????????????????????????????? | | ??????????????????????????????????????????????? | | ??????????????????? #?????????????????????????? | | ???????????????? ###??????????????????????? | | ?????????????? ??????????????????????? | | ???????????? ??????????????????????? | | ???????????? ??????????????????????? | | ????????????? ???????????????????? #? | | ?????????????? ???????????????????? ? | | ??????????????? ??##???????????????? ? | | ???????????????? ?? ????????????????? ? | | ?????????????#??? u ? ????????????????? ? | | ?????????????# ??? ## ?????????????????? # | | ????????????## ?## # ##??????##?????????? | | ???????????## # #####??# ????????? | | ???????????# #??# ????????? | | ???????????# = = #??# #????????? | | ????????????# @ %*% #??# #????????? | | ????????????# #### ###??????? | | ????????????# d # ## #???????# | | ????????????# ##%## """ ######??# | | ????????????## # #### %% """ #### | | ?????????????## #######??#### """ #### | | ??????????????# #????????????# #??####### | | ??????????????# ?????????????# #????????? | | ??????????????#a??????????????# #????????? | | ??????????????#???????????????##### ##????????? | | ?????????????????????????????###### #?????????? | | ???####??????????????????????# #?????????? | | ??## ##?????????????????????# # #?????????? | | ??# ##????????????????????# # # #?????????? | | ?## #????????????????????# # #?????????? | | ?# #???????????####?????# ## # #?????????? | | ?# #????????#### ##????# ^^ #?????????? | | ?# #????????## ####### ##???####### | | ?# #????##### ## #???# | | ??# | #???## ### ### < #??# | | ??# ##??## ####### #?# #?# """ | | ??# ##???# ##??## #?# #?# """ | | ??# ###### ##???# #?## ##?# """ | | ??# ##???# ##?######??# | | ??# % #???## ##?????#### | +----------------------------------------------------+ Best States ------------- Heat Dissipation 25 Energy Generation 10 Energy Capacity 250 Matter Stores 300 Matter Capacity 400 Sight Range 16 Terrain Scan Density 10 Armor Coverage 150 Evasion (%) 42 Recoil Reduction 1 Item Schematics ----------------- None Robot Schematics ------------------ None Fabricated ------------ Nothing Alien Tech Used ----------------- None Achievements -------------- None Challenges ------------ None Game ------ Seed MasterQuantumRifle Manual? 0 Play Time 00:09:22 Cumulative 639.1 hours Start 2020.01.12 @ 13:41:17 End 2020.01.12 @ 13:50:23 Sessions 1 Manual Loads 0 Difficulty Rogue Special Mode None Game No. 569 Rogue 529 Adventurer 40 Explorer 0 Win Type - Total 45 Types 31/0/12/2/0/0/0 Lore% 88 Gallery% 90 Achievement% 69 Wizard Run 0 Options --------- ASCII 0 Keyboard 0 Movement Numpad Keybinds 0 Fullscreen 0 Font 16/Terminus Map View 76x50 Tactical HUD 1 Map Filters NONE Filters NONE Steam 1 RUN: 0d1b8ac2-9574-4665-be20-f64406e249dd